bitfinex/quotes_BTCUSD_20250618
["timestamp","ask_amount","ask_price","bid_price","bid_amount"]
[1750219995627,0.34800865,105380.0,105370.0,0.61422013]
[1750219996099,0.34552865,105380.0,105370.0,0.61422013]
[1750219996763,0.35501748,105380.0,105370.0,0.61422013]
[1750219997116,0.34552865,105380.0,105370.0,0.61422013]
[1750219999336,0.33604,105380.0,105370.0,0.61422013]
[1750219999591,0.35501748,105380.0,105370.0,0.61422013]
[1750219999856,0.34552865,105380.0,105370.0,0.61422013]
[1750220002345,0.35501748,105380.0,105370.0,0.61422013]
[1750220002770,0.34552865,105380.0,105370.0,0.61422013]
[1750220002973,0.00948865,105380.0,105370.0,0.66422013]
[1750220003183,0.00948865,105380.0,105370.0,0.61422013]
[1750220004345,0.01897739,105380.0,105370.0,0.61422013]
[1750220005712,0.00948865,105380.0,105370.0,0.61422013]
[1750220007399,0.34948865,105380.0,105370.0,0.66422013]
[1750220007623,0.34948865,105380.0,105370.0,0.61422013]
[1750220008075,0.34,105380.0,105370.0,0.61422013]
[1750220008306,0.34948865,105380.0,105370.0,0.61422013]
[1750220008729,0.34,105380.0,105370.0,0.61422013]
[1750220009144,0.34948865,105380.0,105370.0,0.61422013]
[1750220009348,0.34,105380.0,105370.0,0.61422013]
[1750220010324,0.34948865,105380.0,105370.0,0.66422013]
[1750220010455,0.34948865,105380.0,105370.0,0.61422013]
[1750220010672,0.4015646,105390.0,105380.0,0.21825663]
[1750220010868,0.35902302,105390.0,105380.0,0.37903924]
[1750220011271,0.349535,105390.0,105380.0,0.37903924]
[1750220011477,0.35902302,105390.0,105380.0,0.37903924]
[1750220011874,0.35902293,105390.0,105380.0,0.38103924]
[1750220012314,0.35902293,105390.0,105380.0,0.33103924]
[1750220012612,0.35902293,105390.0,105380.0,0.33503924]
[1750220013952,0.34004725,105390.0,105380.0,0.33503924]
[1750220014279,0.34004725,105390.0,105380.0,0.38503924]
[1750220014483,0.34004725,105390.0,105380.0,0.33503924]
[1750220015483,0.349535,105390.0,105380.0,0.33503924]
[1750220016213,0.349535,105390.0,105380.0,0.33259426]
[1750220017243,0.35902293,105390.0,105380.0,0.33259426]
[1750220017761,0.35902284,105390.0,105380.0,0.33259426]
[1750220017963,0.349535,105390.0,105380.0,0.33259426]
[1750220018172,0.34004725,105390.0,105380.0,0.33259426]
[1750220018395,0.349535,105390.0,105380.0,0.33259426]
[1750220019358,0.34004725,105390.0,105380.0,0.33259426]
[1750220019557,0.349535,105390.0,105380.0,0.33259426]
[1750220021303,0.34004725,105390.0,105380.0,0.39559426]
[1750220021712,0.34004725,105390.0,105380.0,0.44559426]
[1750220022026,0.34004725,105390.0,105380.0,0.39559426]
[1750220022337,0.34004725,105390.0,105380.0,0.44559426]
[1750220022595,0.34004725,105390.0,105380.0,0.39559426]
[1750220022772,0.34004725,105390.0,105380.0,0.36349426]
[1750220022966,0.34004725,105390.0,105380.0,0.33259426]
[1750220023199,0.34953509,105390.0,105380.0,0.33259426]
[1750220023411,0.35902302,105390.0,105380.0,0.33259426]
[1750220024875,0.349535,105390.0,105380.0,0.33259426]
[1750220025303,0.34004725,105390.0,105380.0,0.33259426]
[1750220025536,0.34953509,105390.0,105380.0,0.33259426]
[1750220026153,0.34953509,105390.0,105380.0,0.38259426]
[1750220026401,0.34953509,105390.0,105380.0,0.33259426]
[1750220026588,0.34004725,105390.0,105380.0,0.33259426]
[1750220026782,0.34953509,105390.0,105380.0,0.33259426]
[1750220026989,0.349535,105390.0,105380.0,0.33259426]
[1750220027543,0.349535,105390.0,105380.0,0.38259426]
[1750220027743,0.349535,105390.0,105380.0,0.33259426]
[1750220029402,0.349535,105390.0,105380.0,0.37227426]
[1750220030237,0.349535,105390.0,105380.0,0.42227426]
[1750220030463,0.349535,105390.0,105380.0,0.37227426]
[1750220031631,0.35902284,105390.0,105380.0,0.37227426]
[1750220032296,0.349535,105390.0,105380.0,0.37227426]
[1750220032499,0.34004725,105390.0,105380.0,0.37227426]
[1750220032716,0.35902302,105390.0,105380.0,0.42227426]
[1750220032930,0.35902302,105390.0,105380.0,0.37227426]
[1750220034003,0.35902302,105390.0,105380.0,0.42227426]
[1750220034223,0.36851122,105390.0,105380.0,0.37227426]
[1750220034407,0.39941122,105390.0,105380.0,0.37227426]
[1750220036485,0.43011122,105390.0,105380.0,0.37227426]
[1750220036793,0.43011113,105390.0,105380.0,0.37227426]
[1750220038322,0.43011113,105390.0,105380.0,0.42227426]
[1750220038537,0.43011113,105390.0,105380.0,0.37227426]
[1750220038738,0.42062302,105390.0,105380.0,0.42227426]
[1750220038951,0.42062302,105390.0,105380.0,0.37227426]
[1750220040425,0.43959942,105390.0,105380.0,0.37227426]
[1750220041298,0.43011113,105390.0,105380.0,0.37227426]
[1750220041515,0.43011113,105390.0,105380.0,0.42227426]
[1750220041702,0.43011113,105390.0,105380.0,0.37227426]
[1750220042689,0.43011113,105390.0,105380.0,0.31606131]
[1750220042899,0.43959951,105390.0,105380.0,0.52879924]
[1750220044142,0.44908798,105390.0,105380.0,0.57879924]
[1750220044351,0.44908798,105390.0,105380.0,0.52879924]
[1750220044968,0.44908798,105390.0,105380.0,0.33503933]
[1750220045181,0.44908798,105390.0,105380.0,0.52879933]
[1750220045591,0.44908798,105390.0,105380.0,0.53828816]
[1750220046320,0.43959951,105390.0,105380.0,0.53828816]
[1750220047468,0.44908798,105390.0,105380.0,0.53828816]
[1750220049381,0.43959951,105390.0,105380.0,0.53828816]
[1750220049683,0.44908798,105390.0,105380.0,0.53828816]
[1750220050734,0.44908879,105390.0,105380.0,0.53828816]
[1750220051457,0.43960023,105390.0,105380.0,0.53828816]
[1750220052323,0.44908879,105390.0,105380.0,0.53828816]
[1750220054843,0.43960023,105390.0,105380.0,0.53828816]
[1750220056708,0.43011176,105390.0,105380.0,0.53828816]
[1750220060276,0.62937164,105390.0,105380.0,0.52879933]
[1750220060982,0.62937164,105390.0,105380.0,0.53828816]
[1750220061185,0.43960032,105390.0,105380.0,0.53828816]
[1750220061406,0.43908032,105390.0,105380.0,0.53828816]
[1750220064189,0.43908032,105390.0,105380.0,0.58828816]
[1750220064334,0.42959176,105390.0,105380.0,0.53828816]
[1750220064560,0.43908023,105390.0,105380.0,0.53828816]
[1750220065299,0.62885155,105390.0,105380.0,0.32555041]
[1750220065537,0.62885155,105390.0,105380.0,0.52875942]
[1750220066403,0.62885155,105390.0,105380.0,0.57875942]
[1750220066643,0.62885155,105390.0,105380.0,0.52875942]
[1750220067751,0.61936353,105390.0,105380.0,0.52875942]
[1750220068277,0.61936353,105390.0,105380.0,0.51927041]
[1750220068486,0.60987542,105390.0,105380.0,0.51927041]
[1750220069742,0.60987542,105390.0,105380.0,0.5287596]
[1750220071075,0.60987542,105390.0,105380.0,0.53824861]
[1750220072124,0.60987542,105390.0,105380.0,0.54773753]
[1750220072545,0.4201041,105390.0,105380.0,0.54773699]
[1750220073226,0.3894041,105390.0,105380.0,0.54773699]
[1750220073453,0.35850374,105390.0,105380.0,0.54773699]
[1750220074378,0.3585032,105390.0,105380.0,0.54773699]
[1750220074825,0.36799149,105390.0,105380.0,0.54773699]
[1750220075091,0.40797996,105390.0,105380.0,0.54769699]
[1750220075276,0.43887996,105390.0,105380.0,0.54769699]
[1750220075754,0.42939149,105390.0,105380.0,0.54769699]
[1750220075982,0.37747987,105390.0,105380.0,0.54769699]
[1750220076231,0.40967987,105390.0,105380.0,0.54769699]
[1750220077919,0.4379366,105390.0,105380.0,0.54769699]
[1750220078156,0.39624822,105390.0,105380.0,0.54769699]
[1750220078376,0.39624822,105390.0,105380.0,0.59769699]
[1750220078600,0.39624822,105390.0,105380.0,0.54769699]
[1750220078833,0.39624822,105390.0,105380.0,0.59769699]
[1750220079055,0.39624822,105390.0,105380.0,0.54769699]
[1750220079796,0.4057366,105390.0,105380.0,0.54769699]
[1750220079955,0.4153424,105390.0,105380.0,0.54769699]
[1750220080159,0.40585402,105390.0,105380.0,0.54769699]
[1750220081432,0.40585402,105390.0,105380.0,0.59769699]
[1750220081700,0.40585402,105390.0,105380.0,0.54769699]
[1750220083062,0.38687762,105390.0,105380.0,0.54769699]
[1750220083284,0.40585366,105390.0,105380.0,0.54769699]
[1750220083910,0.40585366,105390.0,105380.0,0.54269699]
[1750220085236,0.39636555,105390.0,105380.0,0.54269699]
[1750220085548,0.40585357,105390.0,105380.0,0.54269699]
[1750220085725,0.39636555,105390.0,105380.0,0.54269699]
[1750220085940,0.40585357,105390.0,105380.0,0.54269699]
[1750220086551,0.39636555,105390.0,105380.0,0.54269699]
[1750220087526,0.40585366,105390.0,105380.0,0.54269699]
[1750220088881,0.40585357,105390.0,105380.0,0.59269699]
[1750220089088,0.40585357,105390.0,105380.0,0.54269699]
[1750220090465,0.40585357,105390.0,105380.0,0.59269699]
[1750220090675,0.40585357,105390.0,105380.0,0.54269699]
[1750220091756,0.44774186,105390.0,105380.0,0.54265699]
[1750220091966,0.43825357,105390.0,105380.0,0.54265699]
[1750220092187,0.41534177,105390.0,105380.0,0.54265699]
[1750220092598,0.41534177,105390.0,105380.0,0.59265699]
[1750220092798,0.41534177,105390.0,105380.0,0.54265699]
[1750220095010,0.07586177,105390.0,105380.0,0.54265699]
[1750220096133,0.07586177,105390.0,105380.0,0.59265699]
[1750220096344,0.08535006,105390.0,105380.0,0.54265699]
[1750220096833,0.07586177,105390.0,105380.0,0.54265699]
[1750220097046,0.41586177,105390.0,105380.0,0.54265699]
[1750220097835,0.42535015,105390.0,105380.0,0.54265699]
[1750220098164,0.41586177,105390.0,105380.0,0.54265699]
[1750220099371,0.41586177,105390.0,105380.0,0.59265699]
[1750220099584,0.41586177,105390.0,105380.0,0.54265699]
[1750220100313,0.40637357,105390.0,105380.0,0.54265699]
[1750220100548,0.41586177,105390.0,105380.0,0.54265699]
[1750220100764,0.39688555,105390.0,105380.0,0.54265699]
[1750220100976,0.40637357,105390.0,105380.0,0.54265699]
[1750220101416,0.03790978,105390.0,105380.0,0.73490919]
[1750220101634,0.00965305,105390.0,105380.0,0.70990919]
[1750220103217,0.00965305,105390.0,105380.0,0.51226919]
[1750220103436,0.00965305,105390.0,105380.0,0.71590919]
[1750220103649,0.00965305,105390.0,105380.0,0.71390919]
[1750220104078,0.00965305,105390.0,105380.0,0.71990919]
[1750220104577,4.725e-05,105390.0,105380.0,0.71990919]
[1750220104785,4.725e-05,105390.0,105380.0,0.76990919]
[1750220105223,4.725e-05,105390.0,105380.0,0.71990919]
[1750220105645,4.725e-05,105390.0,105380.0,0.69490919]
[1750220105858,4.725e-05,105390.0,105380.0,0.71990919]
[1750220106295,4.725e-05,105390.0,105380.0,0.69365699]
[1750220106517,4.725e-05,105390.0,105380.0,0.64365699]
[1750220108620,4.725e-05,105390.0,105380.0,0.69365699]
[1750220108836,4.725e-05,105390.0,105380.0,0.64365699]
[1750220109251,0.01880049,105400.0,105390.0,0.23277677]
[1750220109465,0.01880049,105400.0,105390.0,0.39411853]
[1750220109878,0.01880049,105400.0,105390.0,0.68521853]
[1750220110547,0.01880049,105400.0,105390.0,0.68921853]
[1750220110807,0.01880049,105400.0,105390.0,0.73921853]
[1750220111017,0.01880049,105400.0,105390.0,0.69521853]
[1750220114100,0.01880049,105400.0,105390.0,0.74521853]
[1750220114318,0.01880049,105400.0,105390.0,0.69521853]
[1750220114948,0.01880049,105400.0,105390.0,0.74521853]
[1750220115171,0.01880049,105400.0,105390.0,0.69521853]
[1750220116686,0.01880049,105400.0,105390.0,0.74521853]
[1750220116905,0.01880049,105400.0,105390.0,0.69521853]
[1750220119981,0.01880049,105400.0,105390.0,0.74521853]
[1750220120196,0.01880049,105400.0,105390.0,0.69521853]
[1750220123465,0.00926253,105400.0,105390.0,0.77021853]
[1750220123911,0.00926253,105400.0,105390.0,0.72021853]
[1750220124566,0.00926253,105400.0,105390.0,0.77021853]
[1750220124781,0.00926253,105400.0,105390.0,0.72021853]
[1750220125464,0.00926253,105400.0,105390.0,0.7696583]
[1750220125714,0.00926253,105400.0,105390.0,0.55537073]
[1750220126374,0.00926253,105400.0,105390.0,0.57111873]
[1750220126601,0.00926253,105400.0,105390.0,0.56711873]
[1750220126839,0.01026253,105400.0,105390.0,0.57511873]
[1750220127933,0.01026253,105400.0,105390.0,0.56911873]
[1750220128139,0.01026253,105400.0,105390.0,0.57811873]
[1750220128993,0.01026253,105400.0,105390.0,0.50186653]
[1750220130110,0.3557477,105430.0,105390.0,0.50186653]
[1750220130327,0.26567625,105440.0,105430.0,0.22320964]
[1750220130533,0.26567625,105440.0,105430.0,0.52245591]
[1750220130534,0.25624019,105440.0,105430.0,0.52245591]
[1750220130753,0.32044019,105440.0,105430.0,0.5129714]
[1750220131227,0.30147279,105440.0,105430.0,0.09624176]
[1750220131460,0.27126879,105430.0,105420.0,0.2911]
[1750220131687,0.27126879,105430.0,105420.0,0.38734176]
[1750220131688,0.2617841,105430.0,105420.0,0.38734176]
[1750220131923,0.27114737,105430.0,105420.0,0.59030762]
[1750220132152,0.61114737,105430.0,105420.0,0.59030762]
[1750220132373,0.61114737,105430.0,105420.0,0.79456579]
[1750220132836,0.61114737,105430.0,105420.0,0.79756579]
[1750220133070,0.61114737,105430.0,105420.0,0.45788261]
[1750220133307,0.61114737,105430.0,105420.0,0.60136261]
[1750220133776,0.61114737,105430.0,105420.0,0.31974847]
[1750220134005,0.61114737,105430.0,105420.0,0.51895156]
[1750220134907,0.61114737,105430.0,105420.0,0.49492494]
[1750220135149,0.61114737,105430.0,105420.0,0.34100494]
[1750220135348,0.61114737,105430.0,105420.0,0.49492494]
[1750220138598,0.61114737,105430.0,105420.0,0.29572176]
[1750220150675,0.61114737,105430.0,105420.0,0.30520762]
[1750220151568,0.6339055,105430.0,105420.0,0.30520762]
[1750220151965,0.6339055,105430.0,105420.0,0.49492494]
[1750220152205,0.6339055,105430.0,105420.0,0.50441062]
[1750220154362,0.63334069,105430.0,105420.0,0.50441062]
[1750220154792,0.63334069,105430.0,105420.0,0.49492494]
[1750220155019,0.62442072,105430.0,105420.0,0.30520762]
[1750220156625,0.62442072,105430.0,105420.0,0.49492494]
[1750220156851,0.62442072,105430.0,105420.0,0.50441071]
[1750220157201,0.62442072,105430.0,105420.0,0.51389639]
[1750220158545,0.62442072,105430.0,105420.0,0.35997639]
[1750220158699,0.62442072,105430.0,105420.0,0.29572176]
[1750220159236,0.62442072,105430.0,105420.0,0.30520762]
[1750220159650,0.62442072,105430.0,105420.0,0.49492494]
[1750220159860,0.62442072,105430.0,105420.0,0.50441071]
[1750220161942,0.62442072,105430.0,105420.0,0.30520762]
[1750220162156,0.62442072,105430.0,105420.0,0.35520762]
[1750220162361,0.62442072,105430.0,105420.0,0.30520762]
[1750220162567,0.62442072,105430.0,105420.0,0.29572176]
[1750220164039,0.62442072,105430.0,105420.0,0.29564176]
[1750220184031,0.65292972,105430.0,105420.0,0.29564176]
[1750220186143,0.62092972,105430.0,105420.0,0.30512762]
[1750220186341,0.65412972,105430.0,105420.0,0.10224176]
[1750220186540,0.65412972,105430.0,105420.0,0.29564176]
[1750220187848,0.19922207,105410.0,105400.0,0.30564085]
[1750220188214,0.19922207,105410.0,105400.0,0.14524942]
[1750220188215,0.20870856,105410.0,105400.0,0.14524942]
[1750220188449,0.27410856,105410.0,105400.0,0.03952]
[1750220188752,0.27410856,105410.0,105400.0,0.1934]
[1750220188985,0.30262256,105410.0,105400.0,0.2064]
[1750220189164,0.32538069,105410.0,105400.0,0.2064]
[1750220189411,0.32346069,105410.0,105400.0,0.1994]
[1750220189610,0.32346069,105410.0,105400.0,0.20388766]
[1750220189823,0.32346069,105410.0,105400.0,0.20588766]
[1750220191133,0.32346069,105410.0,105400.0,0.40512855]
[1750220191354,0.30070256,105410.0,105400.0,0.41461603]
[1750220191565,0.30070256,105410.0,105400.0,0.42410342]
[1750220197601,0.29121607,105410.0,105400.0,0.41461603]
[1750220197823,0.29121607,105410.0,105400.0,0.46461603]
[1750220198012,0.29121607,105410.0,105400.0,0.41461603]
[1750220199325,0.28364931,105410.0,105400.0,0.1964]
[1750220199756,0.28364931,105410.0,105400.0,0.04252]
[1750220199969,0.28364931,105410.0,105400.0,0.1964]
[1750220201263,0.28364931,105410.0,105400.0,0.04252]
[1750220201473,0.6678225,105410.0,105400.0,0.003]
[1750220201683,0.54874799,105390.0,105380.0,0.45122736]
[1750220201887,0.54874799,105390.0,105380.0,0.74086912]
[1750220202529,0.54874799,105390.0,105380.0,0.7503584]
[1750220202736,0.54874799,105390.0,105380.0,0.32416176]
[1750220202990,0.61124799,105390.0,105380.0,0.42132]
[1750220203749,0.61124799,105390.0,105380.0,0.22792]
[1750220203951,0.61124799,105390.0,105380.0,0.42132]
[1750220204184,0.61124799,105390.0,105380.0,0.26744]
[1750220204389,0.61124799,105390.0,105380.0,0.26944]
[1750220204540,0.61124799,105390.0,105380.0,0.42432]
[1750220204996,0.61124799,105390.0,105380.0,0.42232]
[1750220205606,0.61224799,105390.0,105380.0,0.22792]
[1750220205808,0.63498172,105390.0,105380.0,0.42132]
[1750220205960,0.63598172,105390.0,105380.0,0.42132]
[1750220206178,0.63598172,105390.0,105380.0,0.26744]
[1750220206393,0.63598172,105390.0,105380.0,0.42132]
[1750220206810,0.63598172,105390.0,105380.0,0.22792]
[1750220207019,0.63598172,105390.0,105380.0,0.42132]
[1750220207391,0.63598172,105390.0,105380.0,0.22792]
[1750220207607,0.63598172,105390.0,105380.0,0.42132]
[1750220207810,0.55827761,105370.0,105360.0,0.34106384]
[1750220208038,0.55827761,105370.0,105360.0,0.63075285]
[1750220208233,0.55827761,105370.0,105360.0,0.64024375]
[1750220208437,0.55827761,105370.0,105360.0,0.64973456]
[1750220208655,0.55827761,105370.0,105360.0,0.65922528]
[1750220209080,0.36847027,105370.0,105360.0,0.67471591]
[1750220209940,0.36847027,105370.0,105360.0,0.67171591]
[1750220210153,0.38586461,105370.0,105360.0,0.67171591]
[1750220210363,0.38586461,105370.0,105360.0,0.66971591]
[1750220211216,0.38586461,105370.0,105360.0,0.67171591]
[1750220211429,0.38586443,105370.0,105360.0,0.67171591]
[1750220212043,0.41434098,105370.0,105360.0,0.67171591]
[1750220216884,0.4048508,105370.0,105360.0,0.67171591]
[1750220218752,0.4048508,105370.0,105360.0,0.59546371]
[1750220219814,0.41434035,105370.0,105360.0,0.33656371]
[1750220220031,0.42383053,105370.0,105360.0,0.53000371]
[1750220222232,0.4333208,105370.0,105360.0,0.53000371]
[1750220222461,0.62312895,105370.0,105360.0,0.52051308]
[1750220222688,0.61363913,105370.0,105360.0,0.51102236]
[1750220222914,0.64403913,105370.0,105360.0,0.51102236]
[1750220223163,0.47734143,105370.0,105360.0,0.52051299]
[1750220223407,0.4048508,105370.0,105360.0,0.52051299]
[1750220224082,0.41434098,105370.0,105360.0,0.52051299]
[1750220225710,0.38587089,105370.0,105360.0,0.52051299]
[1750220225977,0.38587089,105370.0,105360.0,0.72600604]
[1750220226214,0.36847655,105370.0,105360.0,0.72600604]
[1750220226429,0.36847655,105370.0,105360.0,0.67600604]
[1750220226871,0.38551676,105370.0,105360.0,0.67600604]
[1750220227508,0.36847655,105370.0,105360.0,0.72600604]
[1750220229514,0.36847655,105370.0,105360.0,0.64975384]
[1750220231548,0.36847655,105370.0,105360.0,0.59419454]
[1750220232785,0.36847655,105370.0,105360.0,0.54419454]
[1750220235802,0.36847655,105370.0,105360.0,0.59419454]
[1750220236227,0.36847655,105370.0,105360.0,0.54419454]
[1750220236580,0.36847655,105370.0,105360.0,0.59419454]
[1750220237721,0.02847655,105370.0,105360.0,0.61919454]
[1750220237942,0.02847655,105370.0,105360.0,0.56919454]
[1750220238171,0.34,105390.0,105380.0,0.23279748]
[1750220238419,0.34,105390.0,105380.0,0.52247924]
[1750220239453,0.43884965,105400.0,105390.0,0.26823592]
[1750220239704,0.43884965,105400.0,105390.0,0.31447768]
[1750220240376,0.45577505,105400.0,105390.0,0.31447768]
[1750220240836,0.45877505,105400.0,105390.0,0.31447768]
[1750220241273,0.45877505,105400.0,105390.0,0.36447768]
[1750220241487,0.45877505,105400.0,105390.0,0.31447768]
[1750220242133,0.46377505,105400.0,105390.0,0.31447768]
[1750220242801,0.43531225,105400.0,105390.0,0.37901853]
[1750220243043,0.0249254,105400.0,105390.0,0.36131853]
[1750220243282,0.0249254,105400.0,105390.0,0.39291853]
[1750220243521,0.05272703,105400.0,105390.0,0.39291853]
[1750220243759,0.04972703,105400.0,105390.0,0.39291853]
[1750220243994,0.006,105400.0,105390.0,0.39291853]
[1750220244466,0.02287763,105400.0,105390.0,0.39291853]
[1750220244717,0.006,105400.0,105390.0,0.39291853]
[1750220245605,0.001,105400.0,105390.0,0.39291853]
[1750220245818,0.004,105400.0,105390.0,0.39291853]
[1750220246038,0.41953236,105410.0,105400.0,0.26821549]
[1750220246262,0.41953236,105410.0,105400.0,0.55785725]
[1750220246492,0.63830192,105410.0,105400.0,0.50785725]
[1750220246724,0.65152939,105410.0,105400.0,0.50785743]
[1750220247586,0.68320145,105410.0,105400.0,0.50785743]
[1750220249309,0.68320145,105410.0,105400.0,0.51734464]
[1750220250576,0.68320145,105410.0,105400.0,0.52683176]
[1750220250788,0.45177902,105410.0,105400.0,0.52683113]
[1750220251027,0.4612656,105410.0,105400.0,0.52683113]
[1750220251239,0.46126497,105410.0,105400.0,0.54137198]
[1750220251447,0.46126488,105410.0,105400.0,0.54137198]
[1750220252859,0.47075137,105410.0,105400.0,0.54137198]
[1750220253378,0.46046488,105410.0,105400.0,0.54137198]
[1750220253932,0.46995146,105410.0,105400.0,0.54137198]
[1750220254143,0.50125146,105410.0,105400.0,0.54137198]
[1750220254387,0.51073813,105410.0,105400.0,0.54137198]
[1750220254797,0.50125146,105410.0,105400.0,0.54137198]
[1750220255807,0.49176488,105410.0,105400.0,0.54137198]
[1750220256019,0.49185455,105410.0,105400.0,0.54137198]
[1750220256352,0.50134113,105410.0,105400.0,0.54137198]
[1750220256561,0.49185455,105410.0,105400.0,0.54137198]
[1750220256771,0.49185455,105410.0,105400.0,0.59137198]
[1750220256990,0.49185455,105410.0,105400.0,0.54137198]
[1750220257302,0.50134113,105410.0,105400.0,0.54137198]
[1750220257536,0.50134113,105410.0,105400.0,0.59137198]
[1750220257737,0.50134113,105410.0,105400.0,0.54137198]
[1750220259216,0.50134104,105410.0,105400.0,0.54137198]
[1750220260470,0.49185455,105410.0,105400.0,0.54137198]
[1750220260666,0.48236815,105410.0,105400.0,0.54137198]
[1750220261111,0.48236815,105410.0,105400.0,0.59137198]
[1750220261331,0.48236815,105410.0,105400.0,0.54137198]
[1750220261545,0.42925455,105410.0,105400.0,0.54137198]
[1750220262155,0.43874113,105410.0,105400.0,0.54137198]
[1750220262378,0.49924113,105410.0,105400.0,0.54137198]
[1750220262807,0.48975455,105410.0,105400.0,0.54137198]
[1750220263094,0.49924113,105410.0,105400.0,0.54137198]
[1750220263867,0.48975455,105410.0,105400.0,0.54137198]
[1750220264126,0.49924113,105410.0,105400.0,0.54137198]
[1750220264601,0.5087278,105410.0,105400.0,0.54137198]
[1750220266779,0.49924104,105410.0,105400.0,0.54137198]
[1750220266981,0.46924104,105410.0,105400.0,0.59137198]
[1750220267092,0.46924104,105410.0,105400.0,0.54137198]
[1750220267943,0.46924104,105410.0,105400.0,0.88247198]
[1750220267944,0.06079598,105410.0,105400.0,0.88247198]
[1750220268159,0.40079598,105410.0,105400.0,0.89497198]
[1750220268885,0.40079598,105410.0,105400.0,0.94497198]
[1750220269105,0.06079598,105410.0,105400.0,0.94497198]
[1750220271135,0.03012392,105410.0,105400.0,0.91997198]
[1750220271823,0.06020577,105410.0,105400.0,0.91997198]
[1750220272035,0.03012392,105410.0,105400.0,0.91997198]
[1750220274250,0.03012392,105410.0,105400.0,0.94497198]
[1750220274455,0.03012392,105410.0,105400.0,0.91997198]
[1750220275771,0.03012392,105410.0,105400.0,0.91323198]
[1750220275988,0.03012392,105410.0,105400.0,0.88823198]
[1750220276351,0.33584914,105430.0,105420.0,0.21817382]
[1750220276586,0.33584914,105430.0,105420.0,0.50777558]
[1750220276757,0.34533347,105430.0,105420.0,0.50777558]
[1750220276963,0.33584878,105430.0,105420.0,0.50777558]
[1750220277423,0.3358486,105430.0,105420.0,0.50777558]
[1750220277625,0.35033329,105430.0,105420.0,0.50777558]
[1750220277830,0.3408486,105430.0,105420.0,0.55777558]
[1750220278024,0.35033338,105430.0,105420.0,0.50777558]
[1750220278233,0.3997206,105430.0,105420.0,0.55777558]
[1750220278478,0.41220538,105430.0,105420.0,0.50777558]
[1750220279037,0.41220538,105430.0,105420.0,0.55777558]
[1750220279248,0.41220538,105430.0,105420.0,0.50777558]
[1750220279456,0.47290538,105430.0,105420.0,0.50777558]
[1750220280569,0.4634206,105430.0,105420.0,0.50777558]
[1750220281057,0.453936,105430.0,105420.0,0.55777558]
[1750220281271,0.46342069,105430.0,105420.0,0.50777558]
[1750220281477,0.46342069,105430.0,105420.0,0.55777558]
[1750220281691,0.453936,105430.0,105420.0,0.50777558]
[1750220281914,0.46342069,105430.0,105420.0,0.50777558]
[1750220282152,0.453936,105430.0,105420.0,0.50777558]
[1750220282588,0.393236,105430.0,105420.0,0.50777558]
[1750220283482,0.40272069,105430.0,105420.0,0.50777558]
[1750220283907,0.393236,105430.0,105420.0,0.50777558]
[1750220284791,0.40272078,105430.0,105420.0,0.50777558]
[1750220284995,0.455136,105430.0,105420.0,0.50777558]
[1750220285213,0.393236,105430.0,105420.0,0.52231643]
[1750220285749,0.38375149,105430.0,105420.0,0.52231643]
[1750220285962,0.37426716,105430.0,105420.0,0.52231643]
[1750220286181,0.39323582,105430.0,105420.0,0.52231643]
[1750220286620,0.37126716,105430.0,105420.0,0.52231643]
[1750220286838,0.37226716,105430.0,105420.0,0.63801643]
[1750220287929,0.36726716,105430.0,105420.0,0.63801643]
[1750220288164,0.37675131,105430.0,105420.0,0.63801643]
[1750220288435,0.36926716,105430.0,105420.0,0.63801643]
[1750220288656,0.36926716,105430.0,105420.0,0.63791643]
[1750220289062,0.37875131,105430.0,105420.0,0.63791643]
[1750220289386,0.39772006,105430.0,105420.0,0.52221643]
[1750220290099,0.39771997,105430.0,105420.0,0.52221643]
[1750220290906,0.40720457,105430.0,105420.0,0.52221643]
[1750220291598,0.39771997,105430.0,105420.0,0.52221643]
[1750220292620,0.39771997,105430.0,105420.0,0.57221643]
[1750220292799,0.39771997,105430.0,105420.0,0.52221643]
[1750220293217,0.40720466,105430.0,105420.0,0.52221643]
[1750220293512,0.42851997,105430.0,105420.0,0.81331643]
[1750220293690,0.43800448,105430.0,105420.0,0.81331643]
[1750220293903,0.37875131,105430.0,105420.0,0.81331643]
[1750220294135,0.37875131,105430.0,105420.0,0.84571643]
[1750220294371,0.38823555,105430.0,105420.0,0.89571643]
[1750220294558,0.39771997,105430.0,105420.0,0.84571643]
[1750220294785,0.38823555,105430.0,105420.0,0.84571643]
[1750220295145,0.39771997,105430.0,105420.0,0.81331643]
[1750220295548,0.40720457,105430.0,105420.0,0.81331643]
[1750220296721,0.39771997,105430.0,105420.0,0.81331643]
[1750220297568,0.40720457,105430.0,105420.0,0.81331643]
[1750220297810,0.38823555,105430.0,105420.0,0.81331643]
[1750220298085,0.39771988,105430.0,105420.0,0.81331643]
[1750220298325,0.39771988,105430.0,105420.0,0.86331643]
[1750220298326,0.40720439,105430.0,105420.0,0.86331643]
[1750220298567,0.40720439,105430.0,105420.0,0.81331643]
[1750220298812,0.40720439,105430.0,105420.0,0.86331643]
[1750220299316,0.39771988,105430.0,105420.0,0.81331643]
[1750220299582,0.37875131,105430.0,105420.0,0.87581643]
[1750220299827,0.37875131,105430.0,105420.0,0.92581643]
[1750220300077,0.37875131,105430.0,105420.0,0.68245643]
[1750220300322,0.37875131,105430.0,105420.0,0.87625643]
[1750220301342,0.37875131,105430.0,105420.0,0.92625643]
[1750220301589,0.37875131,105430.0,105420.0,0.87625643]
[1750220302039,0.38823564,105430.0,105420.0,0.87625643]
[1750220303397,0.40720475,105430.0,105420.0,0.81385643]
[1750220303612,0.41668953,105430.0,105420.0,0.81385643]
[1750220303828,0.40720475,105430.0,105420.0,0.81385643]
[1750220304942,0.39772006,105430.0,105420.0,0.81385643]
[1750220305150,0.40720466,105430.0,105420.0,0.52275643]
[1750220305577,0.39772006,105430.0,105420.0,0.52275643]
[1750220305809,0.40720466,105430.0,105420.0,0.52275643]
[1750220307178,0.39772006,105430.0,105420.0,0.52283643]
[1750220307417,0.40720466,105430.0,105420.0,0.52283643]
[1750220308401,0.41668935,105430.0,105420.0,0.52283643]
[1750220309303,0.40720466,105430.0,105420.0,0.52283643]
[1750220309730,0.40720466,105430.0,105420.0,0.52273643]
[1750220310415,0.39772006,105430.0,105420.0,0.52263643]
[1750220310625,0.36952628,105430.0,105420.0,0.52263643]
[1750220311078,0.36952628,105430.0,105420.0,0.81373643]
[1750220311263,0.36004186,105430.0,105420.0,0.84633643]
[1750220311682,0.38316246,105430.0,105420.0,0.84633643]
[1750220311928,0.39264679,105430.0,105420.0,0.84633643]
[1750220312334,0.39264679,105430.0,105420.0,0.89633643]
[1750220312568,0.39264679,105430.0,105420.0,0.84633643]
[1750220314347,0.40213121,105430.0,105420.0,0.84633643]
[1750220315505,0.40213121,105430.0,105420.0,0.81363643]
[1750220315719,0.41161572,105430.0,105420.0,0.81363643]
[1750220316016,0.40213121,105430.0,105420.0,0.81363643]
[1750220316224,0.41161572,105430.0,105420.0,0.86363643]
[1750220316428,0.41161572,105430.0,105420.0,0.81363643]
[1750220316777,0.40213121,105430.0,105420.0,0.81363643]
[1750220317226,0.40213121,105430.0,105420.0,0.86363643]
[1750220317468,0.41161581,105430.0,105420.0,0.81363643]